bitfinex/quotes_ETHUSD_20240924
["timestamp","ask_amount","ask_price","bid_price","bid_amount"]
[1727138632719,0.7878,2652.0,2650.4,4.5827]
[1727138632935,3.77225,2651.0,2650.2,3.77319]
[1727138633236,0.7878,2651.9,2651.2,3.77183]
[1727138633374,0.7878,2651.9,2650.3,4.58275]
[1727138633375,0.7878,2651.9,2651.4,3.77156]
[1727138633575,0.7878,2651.9,2651.3,3.77172]
[1727138633800,0.7878,2651.9,2651.1,3.7719]
[1727138634126,0.7878,2651.9,2650.9,3.7722]
[1727138634127,3.77106,2651.8,2650.9,3.7722]
[1727138634277,0.455886,2651.7,2650.9,3.7722]
[1727138634474,4.227046,2651.7,2651.0,3.0]
[1727138634673,4.227046,2651.7,2650.8,3.77241]
[1727138634874,0.7878,2651.6,2649.9,0.36098445]
[1727138635189,0.7878,2651.6,2649.0,3.77497]
[1727138635190,3.77375,2649.9,2649.0,3.77497]
[1727138635390,5.47843947,2650.6,2648.3,0.8097]
[1727138635391,0.7878,2649.7,2648.3,0.8097]
[1727138635630,0.7878,2649.7,2648.7,3.77541]
[1727138635773,3.7878,2649.7,2648.8,3.77527]
[1727138635978,0.7878,2649.7,2649.1,3.77473]
[1727138636180,0.7878,2649.7,2648.6,4.58523]
[1727138636433,0.7878,2650.3,2649.0,3.77489]
[1727138636717,0.7878,2650.3,2648.2,4.58574]
[1727138636928,0.62662395,2650.2,2649.2,3.77469]
[1727138637076,0.7878,2650.3,2648.2,4.58574]
[1727138637077,0.7878,2650.3,2649.0,3.77489]
[1727138637277,0.7878,2650.3,2649.6,3.77405]
[1727138637511,0.7878,2650.3,2649.1,3.77472]
[1727138637726,0.7878,2650.3,2649.3,3.77455]
[1727138637929,3.77341,2650.2,2649.3,3.77455]
[1727138638229,0.456121,2650.1,2649.3,3.77455]
[1727138638377,0.7878,2650.3,2649.5,3.77424]
[1727138638573,4.56096,2650.3,2649.4,3.77435]
[1727138638810,0.7878,2650.3,2649.6,3.77412]
[1727138639001,0.7878,2650.3,2649.4,3.77435]
[1727138639317,0.7878,2650.3,2649.2,3.77472]
[1727138639318,3.7736,2650.0,2649.2,3.77472]
[1727138639525,0.7878,2650.3,2649.0,3.77493]
[1727138639526,4.15112,2649.9,2649.0,3.77493]
[1727138639679,3.77387,2649.8,2648.9,3.77507]
[1727138640120,0.37736,2649.9,2648.2,0.8097]
[1727138640418,0.7878,2650.3,2649.5,3.77429]
[1727138640824,0.7878,2650.3,2649.3,3.77454]
[1727138641125,3.77363,2650.0,2649.1,3.7748]
[1727138641334,3.77363,2650.0,2649.1,3.77475]
[1727138641627,3.77363,2650.0,2649.2,3.77469]
[1727138641792,4.151113,2649.9,2649.1,3.77475]
[1727138641997,0.377363,2649.9,2648.7,3.77531]
[1727138642299,0.7891,2649.6,2648.9,3.77513]
[1727138642512,0.7891,2649.6,2648.7,3.77531]
[1727138642824,0.7891,2649.6,2648.3,3.77595]
[1727138642977,3.77434,2649.5,2648.6,3.77557]
[1727138643613,3.77434,2649.5,2648.5,3.77559]
[1727138643817,0.456344,2649.4,2648.7,3.77543]
[1727138644060,0.456344,2649.4,2648.3,3.77589]
[1727138644431,8.29833488,2649.3,2648.3,3.77589]
[1727138644592,8.29833488,2649.3,2648.4,3.77584]
[1727138644593,3.77482,2649.2,2648.4,3.77584]
[1727138644781,8.29833488,2649.3,2648.3,3.77589]
[1727138644981,4.65022789,2649.2,2648.3,3.77589]
[1727138645181,4.52363488,2648.9,2648.1,3.77622]
[1727138645381,4.52363488,2648.9,2648.0,0.0755577]
[1727138645382,4.56402,2649.1,2648.0,0.0755577]
[1727138645608,4.56402,2649.1,2648.4,3.77584]
[1727138645609,3.7891,2649.1,2648.4,3.77584]
[1727138645789,3.7891,2649.1,2648.3,3.77599]
[1727138646012,2.08538228,2649.1,2648.5,3.77571]
[1727138646327,0.7891,2649.9,2649.0,3.775]
[1727138646522,0.7891,2649.9,2649.1,3.77474]
[1727138646523,4.56293,2649.9,2649.1,3.77474]
[1727138646724,4.56293,2649.9,2648.5,3.77571]
[1727138646725,4.52363488,2649.6,2648.8,3.77523]
[1727138647024,0.45236349,2649.5,2648.8,3.77523]
[1727138647220,0.45236349,2649.5,2649.0,3.775]
[1727138647426,0.45236349,2649.5,2648.1,0.7612]
[1727138647427,0.7891,2649.9,2648.6,0.55]
[1727138647625,0.7891,2649.9,2649.6,3.77406]
[1727138648067,7.37,2650.9,2649.3,3.0]
[1727138648068,0.7891,2650.3,2649.3,3.0]
[1727138648369,0.7891,2650.3,2650.0,3.77357]
[1727138648527,0.7891,2650.3,2649.7,3.77395]
[1727138648735,0.7891,2650.3,2649.7,3.77389]
[1727138649067,0.7891,2650.3,2649.5,3.77426]
[1727138649068,5.09362349,2650.3,2649.5,3.77426]
[1727138649356,1.32037349,2650.3,2649.7,3.7739]
[1727138649853,0.7891,2650.3,2650.1,3.77333]
[1727138650058,0.7891,2650.3,2649.4,3.77441]
[1727138650259,4.52363488,2650.0,2649.4,3.77441]
[1727138650418,4.52363488,2649.6,2649.0,3.77491]
[1727138650618,4.52363488,2649.6,2647.8,1.56629287]
[1727138650619,4.52363488,2649.6,2648.0,0.8367577]
[1727138650917,4.60415949,2649.5,2648.7,3.77542]
[1727138651118,3.77446,2649.4,2648.7,3.77542]
[1727138651418,4.52363488,2649.2,2648.5,7.55129]
[1727138651623,4.52363488,2649.2,2648.6,3.77554]
[1727138651955,0.7891,2649.1,2648.8,7.55037]
[1727138652162,0.82976949,2649.5,2649.4,3.77443]
[1727138652163,0.7891,2649.5,2649.4,3.77443]
[1727138652514,0.7891,2649.9,2649.6,3.77406]
[1727138652715,0.7891,2649.9,2649.4,3.77431]
[1727138652955,0.7891,2649.9,2649.7,3.77398]
[1727138653254,0.7891,2649.9,2649.1,3.77476]
[1727138653255,0.7891,2649.9,2649.5,3.77424]
[1727138653951,0.7891,2649.9,2649.6,3.77403]
[1727138654154,0.7891,2649.9,2649.6,3.77409]
[1727138654454,0.7961,2650.4,2650.1,3.77342]
[1727138654622,0.7961,2650.4,2650.1,3.77333]
[1727138654823,0.7961,2650.4,2650.2,3.77324]
[1727138655054,0.7961,2650.4,2650.1,3.77335]
[1727138655264,0.7961,2650.4,2649.5,3.0]
[1727138655474,0.7961,2650.4,2650.2,3.77318]
[1727138655779,0.7961,2650.9,2650.3,3.77305]
[1727138656279,0.7961,2650.9,2650.1,3.77333]
[1727138656633,4.52363488,2650.8,2649.9,3.77369]
[1727138656833,4.52363488,2650.8,2649.4,3.0]
[1727138657059,0.7961,2650.9,2650.4,3.773]
[1727138657435,0.7961,2650.9,2650.5,3.77277]
[1727138657661,0.7961,2650.9,2650.4,3.773]
[1727138658178,0.7961,2650.9,2650.2,3.77326]
[1727138658335,4.98046188,2650.8,2649.8,3.77379]
[1727138658534,8.75301188,2650.8,2650.0,3.77357]
[1727138658736,0.7961,2650.9,2650.1,0.07546856]
[1727138659053,0.7961,2650.9,2650.6,3.77264]
[1727138659237,0.7961,2650.9,2650.7,3.77257]
[1727138659436,0.7961,2650.9,2650.6,3.77264]
[1727138659765,0.7961,2650.9,2650.8,3.77244]
[1727138659948,0.7961,2650.9,2650.6,3.77264]
[1727138660145,0.7961,2650.9,2650.8,3.77244]
[1727138660482,0.7961,2651.4,2650.6,0.07544624]
[1727138660650,0.7961,2651.4,2651.0,3.77203]
[1727138660855,0.7961,2651.4,2651.0,3.77208]
[1727138661058,1.32807349,2651.4,2650.8,3.77237]
[1727138661359,1.32807349,2651.4,2650.6,3.77262]
[1727138661572,4.52363488,2651.2,2650.6,3.77262]
[1727138662275,0.7961,2650.7,2649.5,3.77415]
[1727138662484,0.7961,2650.7,2650.2,3.77328]
[1727138662646,0.53197349,2650.6,2650.2,3.77328]
[1727138663272,0.53197349,2650.6,2649.4,0.7922]
[1727138663273,0.53197349,2650.6,2649.8,3.7738]
[1727138663480,4.52363488,2650.4,2648.9,2.30581071]
[1727138663665,4.52363488,2650.0,2649.4,3.77434]
[1727138663873,4.52363488,2650.0,2649.6,3.77413]
[1727138664157,5.05560837,2650.0,2649.6,3.77413]
[1727138664456,0.53197349,2650.0,2649.6,3.77413]
[1727138664669,0.7961,2650.1,2649.6,3.77413]
[1727138665066,0.7961,2650.1,2649.9,3.77371]
[1727138665283,0.7961,2650.1,2649.7,7.54783]
[1727138665504,4.52363488,2650.4,2649.4,3.7922]
[1727138665682,0.7961,2650.8,2650.3,3.77315]
[1727138665857,0.7961,2650.8,2650.1,3.77334]
[1727138666279,5.31973488,2650.8,2650.2,3.77328]
[1727138666480,0.53197349,2650.7,2650.2,3.77328]
[1727138666682,0.53197349,2650.7,2650.1,3.77333]
[1727138666893,3.77274,2650.6,2649.7,3.77391]
[1727138667206,0.53197349,2650.7,2649.5,3.77425]
[1727138667207,0.7961,2650.3,2649.5,3.77425]
[1727138667406,0.7961,2650.3,2649.4,3.84983257]
[1727138667609,0.7961,2650.3,2649.6,3.77404]
[1727138667610,0.53197349,2650.2,2649.6,3.77404]
[1727138668807,0.53197349,2650.2,2649.9,3.7737]
[1727138669164,0.7961,2650.3,2650.2,3.7733]
[1727138669506,0.7961,2650.3,2650.1,3.77343]
[1727138669872,0.7961,2650.3,2650.2,3.7733]
[1727138670102,0.53197349,2650.7,2650.1,3.77343]
[1727138670103,1.32807349,2650.7,2650.1,3.77343]
[1727138670318,1.32807349,2650.7,2650.3,3.77315]
[1727138670526,1.32807349,2650.7,2650.1,7.54677]
[1727138670831,1.32807349,2650.7,2650.1,3.77334]
[1727138671132,1.32807349,2650.7,2650.3,3.77315]
[1727138671627,1.32807349,2650.7,2650.1,7.54671]
[1727138671829,0.58517084,2650.6,2650.2,3.77329]
[1727138672031,0.58517084,2650.6,2650.3,3.77306]
[1727138672716,0.58517084,2650.6,2649.3,3.77451]
[1727138672717,0.58517084,2650.6,2650.0,3.77356]
[1727138672937,0.51539708,2650.5,2649.9,3.77361]
[1727138673238,4.56985,2649.9,2649.3,3.77447]
[1727138673424,4.52363488,2649.6,2648.5,0.7922]
[1727138673627,4.52363488,2649.6,2649.2,3.77467]
[1727138673943,0.45236349,2649.6,2649.5,3.77429]
[1727138674167,0.39414014,2649.8,2649.5,3.77429]
[1727138674326,0.7961,2649.9,2649.3,3.77444]
[1727138674623,0.7961,2649.9,2649.1,3.77476]
[1727138674624,4.56996,2649.9,2649.1,3.77476]
[1727138674808,4.52363488,2649.6,2648.9,3.77501]
[1727138675136,4.52363488,2649.6,2649.0,3.77489]
[1727138675340,0.7961,2649.4,2648.8,3.77525]
[1727138675710,0.7961,2649.4,2648.8,3.7752]
[1727138675924,0.7961,2649.4,2649.0,3.775]
[1727138676131,0.7961,2649.4,2648.8,3.7752]
[1727138677145,0.7961,2649.4,2648.9,3.77503]
[1727138677351,0.7961,2649.4,2649.2,3.77471]
[1727138677645,3.0,2649.9,2649.2,3.77471]
[1727138677646,0.7961,2649.9,2649.3,3.77458]
[1727138677798,1.84846349,2649.9,2649.3,3.77458]
[1727138678021,5.62220349,2649.9,2649.2,3.77471]
[1727138678465,4.52363488,2649.6,2649.2,0.0227901]
[1727138678963,8.29779488,2649.6,2649.2,0.0227901]
[1727138679269,1.20718049,2649.5,2649.2,0.0227901]
[1727138679428,4.98151049,2649.5,2649.2,0.0227901]
[1727138679835,1.20718049,2649.5,2649.2,0.0227901]
[1727138680042,3.77449,2649.4,2649.2,0.0227901]
[1727138680264,1.20718049,2649.5,2649.2,0.0227901]
[1727138680437,0.57308154,2649.4,2649.2,0.0227901]
[1727138681525,4.34754154,2649.4,2649.2,0.0227901]
[1727138682427,0.57308154,2649.4,2649.2,0.0227901]
[1727138682628,8.29781488,2649.6,2649.2,0.0227901]
[1727138683179,3.77446,2649.4,2649.2,0.0227901]
[1727138683820,8.29781488,2649.6,2649.2,0.0227901]
[1727138684152,8.29786488,2649.6,2649.2,0.0227901]
[1727138685165,1.84846349,2649.9,2649.3,3.77457]
[1727138685166,0.7961,2649.9,2649.3,3.77457]
[1727138685368,4.52363488,2650.4,2650.1,3.77344]
[1727138685369,0.7708,2650.4,2650.1,3.77344]
[1727138685672,0.7708,2650.4,2650.1,3.77336]
[1727138686227,0.7708,2650.8,2650.4,3.77293]
[1727138686547,3.77288,2650.5,2649.7,3.774]
[1727138686765,4.52363488,2650.3,2649.2,7.5982701]
[1727138687083,3.77339,2650.2,2649.5,3.77426]
[1727138687230,3.77339,2650.2,2649.2,3.8235901]
[1727138687231,4.52363488,2649.9,2649.3,3.77451]
[1727138687580,8.29736488,2649.9,2649.2,0.0227901]
[1727138687731,4.60370649,2649.8,2649.2,0.0227901]
[1727138687932,3.77401,2649.7,2649.2,0.0227901]
[1727138688871,0.82973649,2649.8,2649.2,3.7974601]
[1727138689044,4.60361649,2649.8,2649.2,3.7974601]
[1727138689272,4.60361649,2649.8,2649.2,0.0227901]
[1727138689273,0.82973649,2649.8,2649.2,0.0227901]
[1727138689479,0.91271814,2649.7,2649.2,0.0227901]
[1727138690005,0.39416536,2649.6,2649.2,0.0227901]
[1727138690358,0.39416536,2649.6,2649.2,3.7973801]
[1727138691609,0.39416536,2649.6,2649.5,3.77429]
[1727138691962,0.7708,2650.2,2649.9,3.77362]
[1727138692157,0.7708,2650.9,2650.4,3.77292]
[1727138692398,0.7708,2650.9,2650.5,3.77284]
[1727138692600,0.39419528,2650.8,2650.7,3.77258]
[1727138692974,0.7708,2651.9,2651.3,3.77173]
[1727138693377,0.7708,2651.9,2650.8,0.0754352]
[1727138693378,4.16529977,2651.8,2650.8,0.0754352]
[1727138693572,3.77132,2651.6,2650.9,3.77221]
[1727138693791,4.52363488,2651.5,2650.9,3.77227]
[1727138693963,4.52363488,2651.5,2651.1,3.77199]
[1727138694333,0.39421198,2651.4,2650.7,3.77256]
[1727138694463,0.39421198,2651.4,2650.7,3.77247]
[1727138694662,0.86894269,2651.3,2650.8,3.7724]
[1727138695401,8.29566488,2651.1,2650.4,3.77301]
[1727138695558,8.29566488,2651.1,2650.2,3.77328]
[1727138695917,4.52363488,2651.1,2650.6,3.77266]
[1727138696562,4.52363488,2651.1,2650.4,3.77301]
[1727138696563,5.29443488,2651.2,2650.4,3.77298]
[1727138697060,3.77203,2651.1,2650.4,3.77298]
[1727138697260,0.90664649,2651.0,2650.4,3.77298]
[1727138697674,0.90664649,2651.0,2650.5,3.77286]
[1727138698109,0.7708,2651.2,2650.7,3.77247]
[1727138698302,0.7708,2651.2,2650.8,3.77242]
[1727138698510,0.7708,2651.2,2650.7,3.77247]
[1727138699089,0.7708,2651.2,2650.9,3.77217]
[1727138699399,0.7708,2651.2,2650.7,3.77247]
[1727138699400,0.7708,2651.2,2650.7,3.77256]
[1727138699610,5.29443488,2651.2,2650.5,3.77281]
[1727138699774,0.52944349,2651.1,2650.5,3.77281]
[1727138699975,4.30148349,2651.1,2650.3,3.77306]
[1727138700207,4.30148349,2651.1,2650.4,3.77297]
[1727138700392,0.52944349,2651.1,2650.4,3.77289]
[1727138701003,0.7708,2651.2,2650.5,3.77277]
[1727138701218,0.7708,2651.2,2650.1,3.77338]
[1727138701219,5.29443488,2651.2,2650.1,3.77338]
[1727138701363,3.77225,2651.0,2650.3,3.77305]
[1727138701820,4.52363488,2650.4,2649.2,0.0227901]
[1727138701978,4.52363488,2649.9,2649.5,3.7742]
[1727138702169,3.45236349,2650.3,2649.8,3.77386]
[1727138702170,4.97599837,2650.3,2649.8,3.77386]
[1727138702508,0.7804,2650.6,2649.2,0.0227901]
[1727138702509,0.7804,2650.6,2649.6,3.7741]
[1727138702661,0.7804,2650.6,2650.2,3.7732]
[1727138703112,0.7804,2650.6,2650.0,3.77352]
[1727138703266,4.55316,2650.6,2650.0,3.77352]
[1727138703466,4.52363488,2650.5,2649.8,3.77384]
[1727138703668,1.28496449,2650.4,2649.9,3.77371]
[1727138704107,5.05807449,2650.4,2649.6,3.77403]
[1727138704514,5.05807449,2650.4,2649.2,6.7974801]
[1727138704515,8.29708488,2650.1,2649.4,3.77437]
[1727138704693,0.7804,2650.0,2649.4,3.77437]
[1727138705013,0.7804,2650.0,2649.2,0.0227901]
[1727138705014,4.52363488,2649.7,2649.2,0.0227901]
[1727138705212,0.82975049,2649.6,2649.5,3.77429]
[1727138705369,0.7804,2650.0,2649.5,3.77429]
[1727138705565,0.7804,2650.0,2649.4,3.77434]
[1727138705782,4.55409,2650.0,2649.2,3.7974201]
[1727138706016,3.77377,2649.9,2649.2,3.7974201]
[1727138706305,0.7804,2650.0,2649.2,0.0227901]
[1727138706465,0.53040349,2649.9,2649.6,3.77405]
[1727138706670,0.53040349,2649.9,2649.7,3.77392]
[1727138706982,0.53040349,2649.9,2649.6,3.77405]
[1727138707321,0.53040349,2649.9,2649.2,0.0227901]
[1727138707322,4.52363488,2649.7,2649.3,3.77456]
[1727138707467,4.52363488,2649.7,2649.2,0.0227901]
[1727138707671,4.22652349,2649.6,2649.2,0.0227901]
[1727138707904,0.45236349,2649.6,2649.2,0.0227901]
[1727138708613,4.22660349,2649.6,2649.2,0.0227901]
[1727138709613,0.45236349,2649.6,2649.2,0.0227901]
[1727138710741,8.29821488,2649.3,2649.2,0.0227901]
[1727138710896,10.13351037,2649.3,2649.2,0.0227901]
[1727138711092,13.13351037,2649.3,2649.2,0.0227901]
[1727138712189,13.52773047,2649.3,2649.2,0.0227901]
[1727138712888,0.3942201,2649.3,2649.2,0.0227901]
[1727138713104,0.3942201,2649.3,2649.2,3.7975101]
[1727138713932,0.3942201,2649.3,2649.2,0.0227901]
[1727138714390,4.52363488,2649.3,2649.2,0.0227901]
[1727138715633,5.07363488,2649.3,2649.2,0.0227901]
[1727138715931,13.55154495,2649.3,2649.2,0.0227901]
[1727138716135,9.77696495,2649.3,2649.2,0.0227901]
[1727138716346,1.70333007,2649.3,2649.2,0.0227901]
[1727138716528,0.39422582,2649.4,2649.2,0.0227901]
[1727138716834,0.39422582,2649.4,2649.3,3.77458]
[1727138716989,0.39422582,2649.4,2649.3,6.77458]
[1727138718227,0.39422582,2649.4,2649.3,3.77458]
[1727138719138,1.17332582,2649.4,2647.3,3.2586014]
[1727138719490,1.17332582,2649.4,2646.2,1.80733653]
[1727138719645,1.17332582,2649.4,2646.3,11.55267962]
[1727138719968,1.17332582,2649.4,2643.9,12.48]
[1727138720240,1.17332582,2649.4,2640.6,8.03599455]
[1727138720241,3.78534,2641.8,2640.6,8.03599455]
[1727138720560,9.33744,2640.3,2640.2,2.1246047]
[1727138720705,2.55,2639.6,2639.5,11.04402266]
[1727138721038,5.80629796,2639.6,2639.5,11.04402266]
[1727138721247,5.93681385,2639.6,2639.5,11.04402266]
[1727138721396,0.55,2639.6,2639.5,11.04402266]
[1727138721754,0.76784215,2639.8,2639.5,11.04402266]
[1727138721914,0.76784215,2639.9,2639.5,11.04932716]
[1727138722098,0.76784215,2640.2,2639.5,11.04932716]
[1727138722441,0.76784215,2640.6,2639.5,11.04932716]
[1727138722649,3.38032937,2640.5,2639.5,11.04932716]
[1727138722936,0.76784215,2640.3,2639.5,11.04932716]
[1727138723147,0.76784215,2640.0,2639.5,11.04932716]
[1727138723300,6.7881,2639.9,2639.5,11.04932716]
[1727138723740,0.76784215,2639.9,2639.5,11.04932716]
[1727138723954,0.76784215,2640.2,2639.5,11.04932716]
[1727138724101,7.55513215,2640.5,2639.5,11.04932716]
[1727138724305,1.15167179,2640.6,2639.5,11.04932716]
[1727138724306,3.0,2640.6,2639.5,11.04932716]
[1727138724501,0.76784215,2641.2,2639.5,11.04932716]
[1727138724937,0.76784215,2641.7,2639.6,0.8311]
[1727138725152,3.78588,2641.4,2639.6,0.8311]
[1727138725326,3.78602,2641.3,2639.6,0.8311]
[1727138725510,3.78659,2640.9,2639.6,0.8311]
[1727138725710,0.378659,2640.8,2639.6,0.8311]
[1727138726050,6.52363488,2640.7,2639.6,0.0053045]
[1727138726264,3.7879,2640.0,2639.6,0.0053045]
[1727138726398,3.0,2640.2,2639.6,0.0053045]
[1727138726724,3.78791,2640.0,2639.6,0.0053045]
[1727138727060,3.78807,2639.9,2639.6,0.0053045]
[1727138727207,3.55,2639.8,2639.6,0.0053045]
[1727138727520,3.55,2639.8,2639.5,11.04402266]
[1727138728034,3.78773,2640.1,2639.5,11.04402266]
[1727138728238,0.55,2640.0,2639.5,11.04402266]
[1727138728420,0.55,2640.2,2639.5,11.04402266]
[1727138729105,3.0,2640.6,2638.6,3.78983]
[1727138729311,6.78746,2640.3,2638.5,3.79003]
[1727138729534,3.0,2640.0,2638.4,3.8311]
[1727138729883,3.0,2639.8,2638.4,0.8311]
[1727138730232,3.78883,2639.4,2637.7,3.79116]
[1727138730429,0.55,2640.1,2636.7,3.79247]
[1727138730627,3.55,2639.6,2638.0,3.79074]
[1727138730831,4.638833,2639.6,2636.8,3.79245]
[1727138731150,3.0,2639.3,2637.5,3.79145]
[1727138731349,0.55,2639.6,2636.8,3.79245]
[1727138731545,3.55,2639.7,2638.1,3.79056]
[1727138731841,3.55,2639.6,2638.0,3.79072]
[1727138732278,3.55,2639.6,2637.9,3.0]
[1727138732479,0.55,2639.4,2637.9,3.0]
[1727138732772,3.78802,2639.9,2638.3,3.7903]
[1727138732995,3.0,2639.8,2638.4,3.79016]
[1727138733471,3.0,2639.8,2638.2,0.7778]
[1727138733676,3.78889,2639.3,2638.2,0.7778]
[1727138733978,3.0,2639.5,2638.2,0.7778]
[1727138734184,3.78744,2640.3,2638.3,0.55]
[1727138734382,3.78744,2640.3,2637.6,3.79121]
[1727138734383,4.465878,2640.5,2639.1,0.7778]
[1727138734617,0.8311,2640.7,2638.9,3.78944]
[1727138734733,4.61802,2640.7,2639.0,3.78929]
[1727138734931,3.78761,2640.2,2638.7,3.78967]
[1727138735148,0.8311,2640.7,2638.6,3.0]
[1727138735375,3.0,2640.0,2638.5,0.89035562]
[1727138735533,6.78775,2640.1,2638.5,3.79002]
[1727138735730,3.0,2639.9,2638.5,3.79002]
[1727138736060,0.678775,2640.1,2638.9,3.78944]
[1727138736385,3.0,2640.2,2638.9,3.78944]
[1727138736581,3.0,2639.9,2638.5,3.79001]
[1727138736742,3.0,2639.9,2638.1,3.79059]
[1727138736935,0.39443113,2640.0,2638.7,3.78961]
[1727138737258,0.39443113,2640.0,2638.9,3.78942]
[1727138737462,0.39443113,2640.0,2639.0,0.7778]
[1727138737876,0.39443113,2640.0,2639.1,3.0]
[1727138738079,0.39443113,2640.0,2639.9,7.56582]
[1727138738468,0.39443113,2640.0,2639.9,0.7778]
[1727138738669,3.78557,2641.7,2640.1,3.78767]
[1727138738864,3.78634,2641.1,2639.9,0.7778]
[1727138739066,0.39437662,2640.7,2639.9,0.7778]
[1727138739289,0.461837,2641.6,2639.9,0.7778]
[1727138739460,0.39440995,2640.6,2639.9,0.7778]
[1727138740004,3.0,2640.6,2639.9,0.7778]
[1727138740302,4.8448,2641.8,2639.1,6.78916]
[1727138740303,0.39441346,2640.5,2639.1,6.78916]
[1727138740457,0.39441346,2640.5,2639.3,3.78877]
[1727138740791,0.39441346,2640.5,2639.8,3.78814]
[1727138741194,0.39441346,2640.5,2640.0,3.78777]
[1727138741400,0.39441346,2640.5,2639.4,3.55]
[1727138741693,0.39441346,2640.5,2639.9,3.78799]
[1727138742158,0.39441346,2640.5,2639.7,3.7883]
[1727138742359,0.39441346,2640.5,2639.6,3.0]
[1727138742573,0.39441346,2640.5,2639.6,6.78843]
[1727138742772,0.39441346,2640.5,2639.5,3.78846]
[1727138742975,0.39441346,2640.5,2639.1,3.78911]
[1727138742976,0.39441346,2640.5,2640.3,3.78743]
[1727138743192,0.39441346,2640.5,2639.7,3.78828]
[1727138743193,0.39441346,2640.5,2640.1,3.78772]
[1727138743453,0.39441346,2640.5,2640.2,3.78757]
[1727138743692,0.39441346,2640.5,2640.3,3.78743]
[1727138743999,0.39441346,2640.5,2640.4,3.7873]
[1727138744292,4.61812,2641.8,2640.4,3.7873]
[1727138744293,4.6181,2641.8,2640.4,3.7873]
[1727138744501,0.39443002,2641.3,2640.5,3.78713]
[1727138744804,0.8328,2641.8,2640.4,3.7873]
[1727138745002,3.78554,2641.7,2640.4,3.7873]
[1727138745189,0.39443558,2641.2,2640.2,3.78751]
[1727138745391,3.78562,2641.6,2640.3,3.78743]
[1727138745560,3.0,2641.5,2640.3,3.78743]
[1727138745755,3.78466,2642.3,2640.1,4.56543]
[1727138745756,0.39443291,2641.1,2640.7,3.78685]
[1727138745957,3.78472,2642.2,2640.7,3.78682]
[1727138746185,4.243672,2642.2,2640.8,3.78671]
[1727138746509,0.39437104,2641.0,2640.8,3.7867]
[1727138746709,3.78487,2642.1,2640.8,3.7867]
[1727138746906,0.39437525,2642.1,2640.8,3.7867]
[1727138747113,0.39437525,2642.1,2641.0,3.78642]
[1727138747274,3.0,2642.0,2640.9,0.7995]
[1727138747458,0.3168,2641.0,2640.9,0.7995]
[1727138747974,0.3168,2641.0,2640.9,4.58608]
[1727138749273,0.3168,2641.0,2640.9,1.07317852]
[1727138749601,0.3168,2641.0,2640.9,3.78658]
[1727138749803,0.3168,2641.0,2640.9,6.78658]
[1727138750381,0.3168,2641.0,2640.8,3.7867]
[1727138750578,0.3168,2641.0,2640.9,6.78658]
[1727138750965,0.3168,2641.0,2640.9,7.33658]
[1727138751463,0.3168,2641.0,2640.9,15.386328]
[1727138751689,0.3168,2641.0,2640.9,7.33658]
[1727138752311,0.3168,2641.0,2640.9,7.58608]
[1727138752723,0.3168,2641.0,2640.9,4.58608]
[1727138753510,0.3168,2641.0,2640.9,0.7995]
[1727138753716,3.78538,2641.8,2640.9,0.7995]
[1727138753717,0.55,2641.8,2640.9,0.7995]
[1727138754010,0.55,2641.5,2640.4,0.7995]
[1727138754169,0.55,2641.3,2639.9,4.58747]
[1727138754377,0.55,2641.0,2639.9,0.7995]
[1727138754568,3.0,2641.2,2640.2,3.78757]
[1727138754767,3.0,2641.2,2639.9,4.58749]
[1727138754969,0.55,2640.8,2639.9,0.7995]
[1727138755285,3.0,2640.7,2639.7,3.78826]
[1727138755610,3.55,2640.8,2639.7,3.78826]
[1727138755780,7.33675,2640.8,2639.7,3.78826]
[1727138756102,7.33675,2640.8,2639.5,4.58803]
[1727138756103,0.8048,2640.9,2639.5,0.7995]
[1727138756308,0.8048,2640.9,2639.9,3.78791]
[1727138756511,3.8048,2640.9,2639.8,3.78802]
[1727138756711,3.8048,2640.9,2639.9,3.788]
[1727138757011,4.33674,2640.8,2639.6,3.78838]
[1727138757253,3.0,2640.7,2639.7,3.78829]
[1727138757368,0.55,2640.8,2639.8,3.78804]
[1727138757570,1.942571,2640.9,2640.0,3.78778]
[1727138757804,0.8048,2640.9,2640.0,3.78778]
[1727138758007,0.8048,2640.9,2639.9,3.788]
[1727138758008,0.8048,2640.9,2639.8,3.78809]
[1727138758217,0.8048,2640.9,2639.6,3.7884]
[1727138758218,4.33681,2640.8,2639.6,3.7884]
[1727138758370,3.8048,2640.9,2639.9,3.78791]
[1727138759069,3.8048,2640.9,2639.7,3.78825]
[1727138759267,0.49897312,2640.8,2639.9,3.78802]
[1727138759698,0.8048,2640.9,2639.6,0.7692]
[1727138759906,0.8048,2640.9,2640.1,3.78761]
[1727138760282,0.8048,2640.9,2639.9,3.78791]
[1727138760283,0.8048,2640.9,2639.9,0.97618628]
[1727138760483,3.0,2641.3,2640.2,3.78748]
[1727138760814,4.54529,2641.4,2639.9,3.78799]
[1727138760815,3.78654,2641.0,2639.9,3.78799]
[1727138761118,3.0,2641.0,2639.9,3.78799]
[1727138761329,3.0,2641.2,2639.9,3.78796]
[1727138761481,3.0,2641.2,2639.6,3.7884]
[1727138761482,3.0,2641.2,2640.1,3.78761]
[1727138761680,0.55,2641.1,2640.2,3.78756]
[1727138761976,0.55,2641.1,2639.9,3.78794]
[1727138761977,3.0,2641.0,2639.9,3.78794]
[1727138762176,3.0,2641.0,2638.7,3.78967]
[1727138762177,3.55,2640.6,2639.0,3.78931]
[1727138762411,3.55,2640.6,2639.6,3.78835]
[1727138762727,3.0,2640.4,2639.4,3.78863]
[1727138762888,3.0,2640.4,2639.3,3.78885]
[1727138762889,3.0,2640.4,2639.5,3.78858]
[1727138763234,3.0,2640.6,2639.0,3.78925]
[1727138763436,0.7594,2640.8,2639.9,3.78791]
[1727138763579,0.7594,2640.8,2639.9,3.78796]